[Event "Late-Titled-Tuesday-Blitz-March-19-2024"]
[Site "Chess.com"]
[Date "2024.03.19"]
[Round "11"]
[White "zverr1"]
[Black "Charodej1"]
[Result "1-0"]
[WhiteElo "2535"]
[BlackElo "2382"]
[TimeControl "180+1"]
[EndTime "16:05:45 PDT"]
[Termination "zverr1 won by resignation"]

1. e4 {[%clk 0:03:00.9]} 1... c6 {[%clk 0:02:59.7]} 2. d4 {[%clk 0:02:59.6]}
2... d5 {[%clk 0:03:00.1]} 3. Nc3 {[%clk 0:02:59.9]} 3... dxe4 {[%clk
0:02:59.8]} 4. Nxe4 {[%clk 0:03:00.8]} 4... Nd7 {[%clk 0:03:00.1]} 5. Qe2 {[%clk
0:02:59.1]} 5... e6 {[%clk 0:02:58.9]} 6. Nf3 {[%clk 0:02:53.5]} 6... Ngf6
{[%clk 0:02:57.6]} 7. Bg5 {[%clk 0:02:52.8]} 7... Be7 {[%clk 0:02:56.1]} 8. Bxf6
{[%clk 0:02:50.9]} 8... Nxf6 {[%clk 0:02:55.3]} 9. O-O-O {[%clk 0:02:50.3]} 9...
Qc7 {[%clk 0:02:55.1]} 10. Kb1 {[%clk 0:02:47.1]} 10... b6 {[%clk 0:02:54]} 11.
Nxf6+ {[%clk 0:02:43]} 11... Bxf6 {[%clk 0:02:48.3]} 12. g4 {[%clk 0:02:41.6]}
12... a5 {[%clk 0:02:28.5]} 13. g5 {[%clk 0:02:40.6]} 13... Be7 {[%clk 0:02:28]}
14. h4 {[%clk 0:02:39.1]} 14... a4 {[%clk 0:02:26.2]} 15. Bg2 {[%clk 0:02:35]}
15... Ba6 {[%clk 0:02:21.1]} 16. Qe5 {[%clk 0:02:33.3]} 16... O-O-O {[%clk
0:01:14.1]} 17. Qxg7 {[%clk 0:02:29]} 17... Bd6 {[%clk 0:00:52.5]} 18. Ne5
{[%clk 0:02:27.2]} 18... Bxe5 {[%clk 0:00:42.1]} 19. Qxe5 {[%clk 0:02:24.6]}
19... h6 {[%clk 0:00:33.7]} 20. f4 {[%clk 0:02:06.2]} 20... Bc4 {[%clk
0:00:27.6]} 21. b3 {[%clk 0:02:04.7]} 21... axb3 {[%clk 0:00:26.8]} 22. axb3
{[%clk 0:02:05.6]} 22... Bd5 {[%clk 0:00:25]} 23. Bxd5 {[%clk 0:02:03.1]} 23...
cxd5 {[%clk 0:00:25.1]} 24. Kb2 {[%clk 0:01:54.9]} 24... Kb7 {[%clk 0:00:20]}
25. Qxc7+ {[%clk 0:01:53.6]} 25... Kxc7 {[%clk 0:00:20.2]} 26. Ra1 {[%clk
0:01:50.7]} 26... Kb7 {[%clk 0:00:20.3]} 27. Kc3 {[%clk 0:01:46.5]} 27... Rc8+
{[%clk 0:00:20.2]} 28. Kd3 {[%clk 0:01:46.7]} 28... Rcg8 {[%clk 0:00:18.6]} 29.
c4 {[%clk 0:01:43.4]} 29... Rd8 {[%clk 0:00:16.7]} 30. Ke3 {[%clk 0:01:41.1]}
30... dxc4 {[%clk 0:00:16.2]} 31. bxc4 {[%clk 0:01:40.9]} 31... Rc8 {[%clk
0:00:10.4]} 32. Rac1 {[%clk 0:01:40.2]} 32... Kc6 {[%clk 0:00:09.5]} 33. Ke4
{[%clk 0:01:37.2]} 33... Kd6 {[%clk 0:00:09.5]} 34. f5 {[%clk 0:01:37.6]} 34...
exf5+ {[%clk 0:00:09.5]} 35. Kxf5 {[%clk 0:01:38.5]} 35... hxg5 {[%clk
0:00:09.9]} 36. Kxg5 {[%clk 0:01:36.1]} 36... Rcg8+ {[%clk 0:00:08]} 37. Kf4
{[%clk 0:01:34.9]} 37... Rh5 {[%clk 0:00:07]} 38. Rb1 {[%clk 0:01:20.9]} 38...
Kc6 {[%clk 0:00:06.3]} 39. Rbf1 {[%clk 0:01:18.5]} 39... f5 {[%clk 0:00:06.2]}
40. Ke3 {[%clk 0:01:16.2]} 40... Rg4 {[%clk 0:00:05.9]} 41. Rf4 {[%clk
0:01:14.3]} 41... Rg3+ {[%clk 0:00:05.2]} 42. Kf2 {[%clk 0:01:14.9]} 42... Rc3
{[%clk 0:00:05]} 43. Rd1 {[%clk 0:00:58.9]} 43... Kd6 {[%clk 0:00:03.1]} 44. d5
{[%clk 0:00:52.7]} 44... Rc2+ {[%clk 0:00:03.2]} 45. Ke3 {[%clk 0:00:51.8]}
45... Rc3+ {[%clk 0:00:03.7]} 46. Kd4 {[%clk 0:00:52]} 46... Rh3 {[%clk
0:00:04]} 47. Re1 {[%clk 0:00:48.1]} 47... R3xh4 {[%clk 0:00:04.2]} 48. Re6+
{[%clk 0:00:48.2]} 48... Kd7 {[%clk 0:00:04.6]} 49. Rxh4 {[%clk 0:00:44.4]}
49... Rxh4+ {[%clk 0:00:05.5]} 50. Kc3 {[%clk 0:00:43.5]} 50... Kc7 {[%clk
0:00:05.5]} 51. Rf6 {[%clk 0:00:43.7]} 51... Rf4 {[%clk 0:00:05]} 52. Kb4 {[%clk
0:00:43.6]} 52... Rf2 {[%clk 0:00:04.8]} 53. Rf7+ {[%clk 0:00:39.6]} 53... Kd6
{[%clk 0:00:03.9]} 54. Rf6+ {[%clk 0:00:39.9]} 54... Kc7 {[%clk 0:00:04.2]} 55.
Rc6+ {[%clk 0:00:40.2]} 55... Kb7 {[%clk 0:00:04.2]} 56. Kc3 {[%clk 0:00:40.8]}
56... f4 {[%clk 0:00:03.1]} 57. Rf6 {[%clk 0:00:40.7]} 57... Kc7 {[%clk
0:00:02.1]} 58. Kd4 {[%clk 0:00:40.2]} 58... Rd2+ {[%clk 0:00:01.9]} 59. Ke5
{[%clk 0:00:38.5]} 59... Rc2 {[%clk 0:00:02.4]} 60. Rxf4 {[%clk 0:00:38]} 60...
Re2+ {[%clk 0:00:02.2]} 61. Re4 {[%clk 0:00:38.5]} 61... Rc2 {[%clk 0:00:02.4]}
62. Kd4 {[%clk 0:00:38.4]} 62... b5 {[%clk 0:00:02.8]} 63. c5 {[%clk 0:00:34.2]}
63... b4 {[%clk 0:00:02.7]} 64. Re7+ {[%clk 0:00:31.6]} 64... Kd8 {[%clk
0:00:03.1]} 65. Rb7 {[%clk 0:00:31.7]} 65... Rd2+ {[%clk 0:00:02.9]} 66. Ke5
{[%clk 0:00:31.3]} 66... Re2+ {[%clk 0:00:02.9]} 67. Kd6 {[%clk 0:00:31.8]}
67... Kc8 {[%clk 0:00:02.9]} 68. Rxb4 {[%clk 0:00:32.4]} 1-0

[Event "Late-Titled-Tuesday-Blitz-March-19-2024"]
[Site "Chess.com"]
[Date "2024.03.19"]
[Round "11"]
[White "Romkachess"]
[Black "Sinquefield"]
[Result "1-0"]
[WhiteElo "2704"]
[BlackElo "2546"]
[TimeControl "180+1"]
[EndTime "16:05:46 PDT"]
[Termination "Romkachess won on time"]

1. e4 {[%clk 0:02:55.4]} 1... e6 {[%clk 0:02:59.3]} 2. d4 {[%clk 0:02:50.8]}
2... d5 {[%clk 0:03:00.2]} 3. Nc3 {[%clk 0:02:51.1]} 3... Nf6 {[%clk 0:03:00.4]}
4. Bg5 {[%clk 0:02:50.8]} 4... Be7 {[%clk 0:02:52.9]} 5. e5 {[%clk 0:02:50.1]}
5... Nfd7 {[%clk 0:02:51.4]} 6. Bxe7 {[%clk 0:02:50.3]} 6... Qxe7 {[%clk
0:02:52.1]} 7. f4 {[%clk 0:02:51]} 7... a6 {[%clk 0:02:52]} 8. Nf3 {[%clk
0:02:51.6]} 8... c5 {[%clk 0:02:52.6]} 9. dxc5 {[%clk 0:02:52.1]} 9... Nxc5
{[%clk 0:02:52.2]} 10. Qd2 {[%clk 0:02:51.7]} 10... Nc6 {[%clk 0:02:51.7]} 11.
Bd3 {[%clk 0:02:52]} 11... b5 {[%clk 0:02:51.5]} 12. O-O {[%clk 0:02:52]} 12...
Bb7 {[%clk 0:02:47.2]} 13. Rae1 {[%clk 0:02:51.7]} 13... Na5 {[%clk 0:02:46.6]}
14. f5 {[%clk 0:02:43.3]} 14... Nc4 {[%clk 0:02:44.8]} 15. Bxc4 {[%clk
0:02:33.3]} 15... dxc4 {[%clk 0:02:43.7]} 16. f6 {[%clk 0:02:27]} 16... gxf6
{[%clk 0:02:43.4]} 17. exf6 {[%clk 0:02:26.2]} 17... Qd7 {[%clk 0:02:43.8]} 18.
Qh6 {[%clk 0:02:20.5]} 18... O-O-O {[%clk 0:02:43.2]} 19. Qe3 {[%clk 0:02:00.7]}
19... Qc7 {[%clk 0:02:40.7]} 20. Ne5 {[%clk 0:01:55.8]} 20... Rhg8 {[%clk
0:02:37.9]} 21. Rf2 {[%clk 0:01:56.4]} 21... b4 {[%clk 0:02:30.2]} 22. Nxf7
{[%clk 0:00:44.9]} 22... Rdf8 {[%clk 0:01:36.7]} 23. Nh6 {[%clk 0:00:36.8]}
23... Rg6 {[%clk 0:01:33.3]} 24. Na4 {[%clk 0:00:13.1]} 24... Ne4 {[%clk
0:01:28]} 25. Nb6+ {[%clk 0:00:11.1]} 25... Kb8 {[%clk 0:01:28.1]} 26. Ree2
{[%clk 0:00:07.7]} 26... Nxf2 {[%clk 0:01:23.9]} 27. Rxf2 {[%clk 0:00:08.6]}
27... Rgxf6 {[%clk 0:01:20.2]} 28. Ng4 {[%clk 0:00:04.2]} 28... Rxf2 {[%clk
0:01:13.5]} 29. Nxf2 {[%clk 0:00:05.1]} 29... Rf6 {[%clk 0:00:52.6]} 30. h3
{[%clk 0:00:04.3]} 30... Qc6 {[%clk 0:00:30.2]} 31. Nd7+ {[%clk 0:00:03.9]}
31... Qxd7 {[%clk 0:00:27.4]} 32. Qe5+ {[%clk 0:00:03.9]} 32... Ka7 {[%clk
0:00:19.5]} 33. Qxf6 {[%clk 0:00:04.4]} 33... Qd5 {[%clk 0:00:19.4]} 34. Qg7
{[%clk 0:00:03.2]} 34... h5 {[%clk 0:00:19.5]} 35. h4 {[%clk 0:00:03.3]} 35...
a5 {[%clk 0:00:17.7]} 36. Qg3 {[%clk 0:00:03.4]} 36... a4 {[%clk 0:00:17.3]} 37.
Qe3+ {[%clk 0:00:03.6]} 37... Ka6 {[%clk 0:00:17.8]} 38. Qg5 {[%clk 0:00:02.9]}
38... b3 {[%clk 0:00:14.4]} 39. cxb3 {[%clk 0:00:02.5]} 39... a3 {[%clk
0:00:11.1]} 40. bxa3 {[%clk 0:00:02.6]} 40... c3 {[%clk 0:00:11.4]} 41. Qxd5
{[%clk 0:00:01.4]} 41... Bxd5 {[%clk 0:00:11.8]} 42. Nd3 {[%clk 0:00:02.3]}
42... Be4 {[%clk 0:00:12.6]} 43. Nc1 {[%clk 0:00:03.1]} 43... Kb5 {[%clk
0:00:13.2]} 44. Kf2 {[%clk 0:00:04]} 44... Kc5 {[%clk 0:00:12]} 45. Ke3 {[%clk
0:00:04.9]} 45... Bxg2 {[%clk 0:00:12.3]} 46. Kd3 {[%clk 0:00:05.1]} 46... Kd5
{[%clk 0:00:11.3]} 47. Kxc3 {[%clk 0:00:06]} 47... Ke5 {[%clk 0:00:12]} 48. a4
{[%clk 0:00:06.8]} 48... Kf4 {[%clk 0:00:12.4]} 49. Nd3+ {[%clk 0:00:07.5]}
49... Kg4 {[%clk 0:00:11.8]} 50. Nc5 {[%clk 0:00:08.4]} 50... e5 {[%clk
0:00:09.8]} 51. Kd3 {[%clk 0:00:08.1]} 51... Kxh4 {[%clk 0:00:10.1]} 52. Ke3
{[%clk 0:00:09]} 52... Kg3 {[%clk 0:00:10]} 53. Nd7 {[%clk 0:00:08.9]} 53... h4
{[%clk 0:00:09.2]} 54. Nxe5 {[%clk 0:00:06.9]} 54... h3 {[%clk 0:00:09.4]} 55.
Nd3 {[%clk 0:00:07.4]} 55... Bf1 {[%clk 0:00:01.4]} 56. Nf2 {[%clk 0:00:08.3]}
56... h2 {[%clk 0:00:01.7]} 57. b4 {[%clk 0:00:08]} 57... Kh4 {[%clk 0:00:01.4]}
58. b5 {[%clk 0:00:08.3]} 58... Kg5 {[%clk 0:00:02]} 59. b6 {[%clk 0:00:07.5]}
59... Ba6 {[%clk 0:00:01.5]} 60. Kf3 {[%clk 0:00:07]} 1-0

[Event "Late-Titled-Tuesday-Blitz-March-19-2024"]
[Site "Chess.com"]
[Date "2024.03.19"]
[Round "11"]
[White "Eloist"]
[Black "karinachess1"]
[Result "0-1"]
[WhiteElo "2500"]
[BlackElo "2629"]
[TimeControl "180+1"]
[EndTime "16:05:46 PDT"]
[Termination "karinachess1 won on time"]

1. e4 {[%clk 0:03:00.9]} 1... e5 {[%clk 0:02:59.5]} 2. Bc4 {[%clk 0:02:58.3]}
2... Nf6 {[%clk 0:02:56.2]} 3. d3 {[%clk 0:02:58.1]} 3... c6 {[%clk 0:02:54.7]}
4. Nf3 {[%clk 0:02:57.5]} 4... Be7 {[%clk 0:02:54.4]} 5. O-O {[%clk 0:02:56.6]}
5... d6 {[%clk 0:02:54.1]} 6. Re1 {[%clk 0:02:55.3]} 6... O-O {[%clk 0:02:54.1]}
7. c3 {[%clk 0:02:55.4]} 7... Nbd7 {[%clk 0:02:52.6]} 8. Bb3 {[%clk 0:02:55.4]}
8... Nc5 {[%clk 0:02:52.9]} 9. Bc2 {[%clk 0:02:55.6]} 9... Bg4 {[%clk
0:02:44.4]} 10. h3 {[%clk 0:02:54.8]} 10... Bh5 {[%clk 0:02:38.9]} 11. Nbd2
{[%clk 0:02:52.1]} 11... Re8 {[%clk 0:02:36.6]} 12. Nf1 {[%clk 0:02:51.6]} 12...
Bf8 {[%clk 0:02:25.6]} 13. Ng3 {[%clk 0:02:49.9]} 13... Bg6 {[%clk 0:02:19.4]}
14. Be3 {[%clk 0:02:04.7]} 14... d5 {[%clk 0:02:14.6]} 15. exd5 {[%clk
0:01:58.1]} 15... Qxd5 {[%clk 0:02:14.5]} 16. d4 {[%clk 0:01:50.5]} 16... Bxc2
{[%clk 0:01:56.7]} 17. Qxc2 {[%clk 0:01:50.6]} 17... e4 {[%clk 0:01:41.7]} 18.
Ng5 {[%clk 0:01:33.3]} 18... Nd3 {[%clk 0:01:38.9]} 19. Re2 {[%clk 0:01:00.8]}
19... Bd6 {[%clk 0:01:38.5]} 20. c4 {[%clk 0:00:55.1]} 20... Qa5 {[%clk
0:01:34.3]} 21. N3xe4 {[%clk 0:00:49.3]} 21... Nxe4 {[%clk 0:01:28.5]} 22. Nxe4
{[%clk 0:00:47.3]} 22... Rxe4 {[%clk 0:01:17.2]} 23. Qxd3 {[%clk 0:00:46.2]}
23... Rae8 {[%clk 0:01:17.6]} 24. a3 {[%clk 0:00:41.3]} 24... Qc7 {[%clk
0:01:15.5]} 25. Rae1 {[%clk 0:00:38.3]} 25... Qe7 {[%clk 0:01:10.7]} 26. b4
{[%clk 0:00:31.7]} 26... Bc7 {[%clk 0:01:08.2]} 27. Kf1 {[%clk 0:00:23.5]} 27...
Qd7 {[%clk 0:00:52.2]} 28. Bd2 {[%clk 0:00:20.6]} 28... Rxe2 {[%clk 0:00:45.3]}
29. Rxe2 {[%clk 0:00:21.5]} 29... Rd8 {[%clk 0:00:42.2]} 30. Bc3 {[%clk
0:00:20.9]} 30... h5 {[%clk 0:00:38.1]} 31. Qe4 {[%clk 0:00:20.8]} 31... Bd6
{[%clk 0:00:32.2]} 32. d5 {[%clk 0:00:17.8]} 32... cxd5 {[%clk 0:00:24.6]} 33.
Qxd5 {[%clk 0:00:18.7]} 33... Bf8 {[%clk 0:00:21.7]} 34. Qxd7 {[%clk 0:00:18.1]}
34... Rxd7 {[%clk 0:00:22.6]} 35. Re8 {[%clk 0:00:17.2]} 35... Rd3 {[%clk
0:00:21.1]} 36. Be5 {[%clk 0:00:15.7]} 36... f6 {[%clk 0:00:20.6]} 37. Bf4
{[%clk 0:00:14.9]} 37... b6 {[%clk 0:00:12.7]} 38. Be3 {[%clk 0:00:13.3]} 38...
Rxa3 {[%clk 0:00:09.3]} 39. c5 {[%clk 0:00:13.1]} 39... Kf7 {[%clk 0:00:09.4]}
40. Rb8 {[%clk 0:00:11.1]} 40... bxc5 {[%clk 0:00:09.6]} 41. Rb7+ {[%clk
0:00:11.6]} 41... Ke6 {[%clk 0:00:08.4]} 42. Rb8 {[%clk 0:00:10.9]} 42... Bd6
{[%clk 0:00:08.2]} 43. Rb7 {[%clk 0:00:07.5]} 43... cxb4 {[%clk 0:00:08]} 44.
Bxa7 {[%clk 0:00:07.6]} 44... Rb3 {[%clk 0:00:08.1]} 45. Ke2 {[%clk 0:00:06.9]}
45... g5 {[%clk 0:00:08]} 46. h4 {[%clk 0:00:06.4]} 46... gxh4 {[%clk
0:00:07.5]} 47. Rh7 {[%clk 0:00:06.4]} 47... Rb2+ {[%clk 0:00:07.5]} 48. Ke1
{[%clk 0:00:06]} 48... b3 {[%clk 0:00:07.6]} 49. Rxh5 {[%clk 0:00:05.6]} 49...
Ra2 {[%clk 0:00:07.2]} 50. Bd4 {[%clk 0:00:03.9]} 50... Be5 {[%clk 0:00:06.6]}
51. Bxe5 {[%clk 0:00:03.5]} 51... fxe5 {[%clk 0:00:07.5]} 52. Rh6+ {[%clk
0:00:03.8]} 52... Kd5 {[%clk 0:00:07.7]} 53. Rb6 {[%clk 0:00:04.7]} 53... b2
{[%clk 0:00:07.6]} 54. Kd1 {[%clk 0:00:04.4]} 54... b1=Q+ {[%clk 0:00:04.5]} 55.
Rxb1 {[%clk 0:00:03.4]} 55... Rxf2 {[%clk 0:00:05.4]} 56. Rb4 {[%clk 0:00:01.6]}
56... e4 {[%clk 0:00:05.6]} 57. Rb5+ {[%clk 0:00:02]} 57... Kd4 {[%clk
0:00:05.2]} 58. Rh5 {[%clk 0:00:02.9]} 58... Kd3 {[%clk 0:00:05.3]} 0-1

[Event "Late-Titled-Tuesday-Blitz-March-19-2024"]
[Site "Chess.com"]
[Date "2024.03.19"]
[Round "11"]
[White "Hikaru"]
[Black "FabianoCaruana"]
[Result "1/2-1/2"]
[WhiteElo "3259"]
[BlackElo "3096"]
[TimeControl "180+1"]
[EndTime "16:05:48 PDT"]
[Termination "Game drawn by repetition"]

1. e4 {[%clk 0:03:00.9]} 1... c5 {[%clk 0:02:59.8]} 2. Nf3 {[%clk 0:03:00.6]}
2... d6 {[%clk 0:03:00.3]} 3. Bc4 {[%clk 0:02:57.6]} 3... Nc6 {[%clk 0:02:59.6]}
4. d3 {[%clk 0:02:57.7]} 4... g6 {[%clk 0:02:59.9]} 5. c3 {[%clk 0:02:57.6]}
5... Bg7 {[%clk 0:03:00]} 6. Bb3 {[%clk 0:02:56.3]} 6... Nf6 {[%clk 0:03:00]} 7.
O-O {[%clk 0:02:56.5]} 7... O-O {[%clk 0:03:00.3]} 8. Re1 {[%clk 0:02:56.7]}
8... e5 {[%clk 0:02:54.1]} 9. Nbd2 {[%clk 0:02:52.4]} 9... h6 {[%clk 0:02:53.2]}
10. Nf1 {[%clk 0:02:51.5]} 10... d5 {[%clk 0:02:50.1]} 11. Ng3 {[%clk
0:02:48.9]} 11... Be6 {[%clk 0:02:40.1]} 12. Be3 {[%clk 0:02:45.2]} 12... d4
{[%clk 0:02:33]} 13. cxd4 {[%clk 0:02:42.4]} 13... cxd4 {[%clk 0:02:30.3]} 14.
Bd2 {[%clk 0:02:41.2]} 14... Qd6 {[%clk 0:02:27]} 15. Bxe6 {[%clk 0:02:37.9]}
15... Qxe6 {[%clk 0:02:27.1]} 16. b4 {[%clk 0:02:38.5]} 16... Rfc8 {[%clk
0:02:23.6]} 17. b5 {[%clk 0:02:37.1]} 17... Nb8 {[%clk 0:02:21.1]} 18. Bb4
{[%clk 0:02:35.2]} 18... Nbd7 {[%clk 0:02:20.8]} 19. Nd2 {[%clk 0:02:33.8]}
19... a5 {[%clk 0:02:11.6]} 20. bxa6 {[%clk 0:02:25.6]} 20... Rxa6 {[%clk
0:02:06.6]} 21. a3 {[%clk 0:02:23]} 21... Rac6 {[%clk 0:01:59.3]} 22. Rb1 {[%clk
0:02:16.1]} 22... b5 {[%clk 0:01:55.9]} 23. Qb3 {[%clk 0:02:14.9]} 23... Qxb3
{[%clk 0:01:52.5]} 24. Nxb3 {[%clk 0:02:15.2]} 24... Nb6 {[%clk 0:01:51.7]} 25.
Na5 {[%clk 0:02:10.4]} 25... Re6 {[%clk 0:01:23.2]} 26. Rec1 {[%clk 0:02:07]}
26... Ree8 {[%clk 0:01:20.3]} 27. Nc6 {[%clk 0:01:59.2]} 27... Kh7 {[%clk
0:01:16.5]} 28. Na7 {[%clk 0:01:42.3]} 28... Rxc1+ {[%clk 0:01:10.5]} 29. Rxc1
{[%clk 0:01:43.2]} 29... Bf8 {[%clk 0:01:07.4]} 30. Nxb5 {[%clk 0:01:33.3]}
30... Na4 {[%clk 0:01:05.3]} 31. Rb1 {[%clk 0:01:12.5]} 31... Bxb4 {[%clk
0:00:53.7]} 32. axb4 {[%clk 0:01:11.5]} 32... Rb8 {[%clk 0:00:51.4]} 33. Nd6
{[%clk 0:01:10.3]} 33... Nc3 {[%clk 0:00:50.2]} 34. Ra1 {[%clk 0:01:06.7]} 34...
Kg8 {[%clk 0:00:42.6]} 35. h3 {[%clk 0:01:00.7]} 35... Ne8 {[%clk 0:00:39.5]}
36. Nxe8 {[%clk 0:00:56]} 36... Rxe8 {[%clk 0:00:40.4]} 37. Ra5 {[%clk 0:00:43]}
37... Rb8 {[%clk 0:00:40.4]} 38. Nf1 {[%clk 0:00:33.8]} 38... Rxb4 {[%clk
0:00:39.5]} 39. Nd2 {[%clk 0:00:34]} 39... Ne2+ {[%clk 0:00:38.7]} 40. Kh2
{[%clk 0:00:34.2]} 40... Nf4 {[%clk 0:00:39.6]} 41. Rxe5 {[%clk 0:00:31.4]}
41... Nxd3 {[%clk 0:00:39.7]} 42. Re8+ {[%clk 0:00:31.6]} 42... Kg7 {[%clk
0:00:40.2]} 43. Kg3 {[%clk 0:00:29.7]} 43... Rb2 {[%clk 0:00:34.1]} 44. Nf3
{[%clk 0:00:29.9]} 44... Nxf2 {[%clk 0:00:31.7]} 45. Nxd4 {[%clk 0:00:29.5]}
45... Rb4 {[%clk 0:00:25.9]} 46. Kxf2 {[%clk 0:00:10.3]} 46... Rxd4 {[%clk
0:00:25.9]} 47. Kf3 {[%clk 0:00:10.9]} 47... Rd3+ {[%clk 0:00:25.8]} 48. Kf2
{[%clk 0:00:11.4]} 48... Rd7 {[%clk 0:00:26.4]} 49. Kf3 {[%clk 0:00:11.5]} 49...
Rd3+ {[%clk 0:00:26.1]} 50. Kf2 {[%clk 0:00:12.1]} 50... Rd7 {[%clk 0:00:27]}
51. Ra8 {[%clk 0:00:11.6]} 51... Re7 {[%clk 0:00:26.8]} 52. Kf3 {[%clk
0:00:11.9]} 52... h5 {[%clk 0:00:26.8]} 53. h4 {[%clk 0:00:09.2]} 53... Re6
{[%clk 0:00:26.9]} 54. g3 {[%clk 0:00:08.9]} 54... Rf6+ {[%clk 0:00:27.3]} 55.
Ke3 {[%clk 0:00:09.4]} 55... Re6 {[%clk 0:00:28.2]} 56. Ra7 {[%clk 0:00:09.6]}
56... Rb6 {[%clk 0:00:28.2]} 57. Ra3 {[%clk 0:00:09.3]} 57... Rf6 {[%clk
0:00:28.1]} 58. Ke2 {[%clk 0:00:08]} 58... Re6 {[%clk 0:00:28.5]} 59. Kf3 {[%clk
0:00:08.4]} 59... Rf6+ {[%clk 0:00:28.8]} 60. Ke3 {[%clk 0:00:07.9]} 60... Re6
{[%clk 0:00:29.7]} 61. Ra7 {[%clk 0:00:07.6]} 61... Rf6 {[%clk 0:00:29.7]} 62.
e5 {[%clk 0:00:06.1]} 62... Rb6 {[%clk 0:00:28.6]} 63. Kf4 {[%clk 0:00:05]}
63... Rb4+ {[%clk 0:00:28.5]} 64. Kf3 {[%clk 0:00:05.6]} 64... Rb3+ {[%clk
0:00:28.5]} 65. Kf2 {[%clk 0:00:05.4]} 65... Rb2+ {[%clk 0:00:28.3]} 66. Kf3
{[%clk 0:00:06]} 66... Rb3+ {[%clk 0:00:28.8]} 67. Kf4 {[%clk 0:00:06]} 67...
Rb1 {[%clk 0:00:26.4]} 68. Kf3 {[%clk 0:00:04.3]} 68... Re1 {[%clk 0:00:26.3]}
69. Ra5 {[%clk 0:00:04.7]} 69... Kh6 {[%clk 0:00:25.4]} 70. Kf2 {[%clk
0:00:04.9]} 70... Re4 {[%clk 0:00:25.6]} 71. Kf3 {[%clk 0:00:03.8]} 71... Re1
{[%clk 0:00:25.7]} 72. Ra7 {[%clk 0:00:04.5]} 72... Kg7 {[%clk 0:00:24.4]} 73.
Ra5 {[%clk 0:00:04.7]} 73... Kh6 {[%clk 0:00:24.7]} 1/2-1/2

[Event "Late-Titled-Tuesday-Blitz-March-19-2024"]
[Site "Chess.com"]
[Date "2024.03.19"]
[Round "11"]
[White "cthulhuuu"]
[Black "IMRosen"]
[Result "1-0"]
[WhiteElo "2417"]
[BlackElo "2595"]
[TimeControl "180+1"]
[EndTime "16:05:51 PDT"]
[Termination "cthulhuuu won by checkmate"]

1. e4 {[%clk 0:02:59.8]} 1... c5 {[%clk 0:02:58.6]} 2. Nf3 {[%clk 0:03:00.1]}
2... Nc6 {[%clk 0:02:58.3]} 3. g3 {[%clk 0:03:00.7]} 3... e5 {[%clk 0:02:49]} 4.
Bg2 {[%clk 0:02:59.6]} 4... d6 {[%clk 0:02:48.3]} 5. O-O {[%clk 0:02:59.8]} 5...
g6 {[%clk 0:02:48.9]} 6. d3 {[%clk 0:03:00]} 6... Bg7 {[%clk 0:02:49.4]} 7. Nc3
{[%clk 0:03:00.8]} 7... Nge7 {[%clk 0:02:49.9]} 8. Nd2 {[%clk 0:03:01]} 8... O-O
{[%clk 0:02:48.8]} 9. Nc4 {[%clk 0:03:01.3]} 9... a6 {[%clk 0:02:49.3]} 10. a4
{[%clk 0:03:01.3]} 10... Be6 {[%clk 0:02:47.7]} 11. Nd5 {[%clk 0:03:00.8]} 11...
Bxd5 {[%clk 0:02:44.5]} 12. exd5 {[%clk 0:03:00.8]} 12... Nb8 {[%clk 0:02:29.7]}
13. a5 {[%clk 0:02:52.5]} 13... Qc7 {[%clk 0:02:29.3]} 14. Nb6 {[%clk
0:02:51.1]} 14... Ra7 {[%clk 0:02:28.9]} 15. c3 {[%clk 0:02:46.8]} 15... Nd7
{[%clk 0:02:29.3]} 16. Nc4 {[%clk 0:02:44.7]} 16... Raa8 {[%clk 0:02:25.8]} 17.
f4 {[%clk 0:02:42.4]} 17... f5 {[%clk 0:02:04.6]} 18. Re1 {[%clk 0:02:41.6]}
18... b5 {[%clk 0:01:54.7]} 19. axb6 {[%clk 0:02:37.9]} 19... Nxb6 {[%clk
0:01:55.3]} 20. fxe5 {[%clk 0:01:38.5]} 20... Nxc4 {[%clk 0:01:54.9]} 21. dxc4
{[%clk 0:01:24.1]} 21... Bxe5 {[%clk 0:01:49.3]} 22. Rxe5 {[%clk 0:01:23.4]}
22... dxe5 {[%clk 0:01:49.6]} 23. d6 {[%clk 0:01:23.7]} 23... Qd7 {[%clk
0:01:00.2]} 24. Bh6 {[%clk 0:01:23.5]} 24... e4 {[%clk 0:00:21]} 25. Bxf8 {[%clk
0:01:11.1]} 25... Rxf8 {[%clk 0:00:21.5]} 26. dxe7 {[%clk 0:01:11.2]} 26... Qxe7
{[%clk 0:00:22.4]} 27. Qd5+ {[%clk 0:01:10.4]} 27... Kg7 {[%clk 0:00:20.9]} 28.
Rxa6 {[%clk 0:00:52.8]} 28... Rd8 {[%clk 0:00:20.8]} 29. Qe6 {[%clk 0:00:47.3]}
29... Rd1+ {[%clk 0:00:19.2]} 30. Bf1 {[%clk 0:00:47.6]} 30... Qg5 {[%clk
0:00:14.3]} 31. Qe5+ {[%clk 0:00:35.4]} 31... Kh6 {[%clk 0:00:13.5]} 32. Qf4
{[%clk 0:00:27.7]} 32... e3 {[%clk 0:00:13.8]} 33. Re6 {[%clk 0:00:24.5]} 33...
Re1 {[%clk 0:00:08.3]} 34. Kg2 {[%clk 0:00:24.2]} 34... Qxf4 {[%clk 0:00:02.9]}
35. gxf4 {[%clk 0:00:25.1]} 35... Kh5 {[%clk 0:00:03.4]} 36. h3 {[%clk
0:00:23.1]} 36... g5 {[%clk 0:00:03.2]} 37. fxg5 {[%clk 0:00:21.3]} 37... Kxg5
{[%clk 0:00:04.1]} 38. b4 {[%clk 0:00:08.2]} 38... cxb4 {[%clk 0:00:02.8]} 39.
cxb4 {[%clk 0:00:08.4]} 39... Kf4 {[%clk 0:00:03.3]} 40. b5 {[%clk 0:00:05.8]}
40... Rb1 {[%clk 0:00:03.5]} 41. b6 {[%clk 0:00:05.7]} 41... Rb2+ {[%clk
0:00:04.1]} 42. Kg1 {[%clk 0:00:06]} 42... Kg3 {[%clk 0:00:03.4]} 43. Rxe3+
{[%clk 0:00:06.2]} 43... Kf4 {[%clk 0:00:03.4]} 44. Re6 {[%clk 0:00:06.4]} 44...
h5 {[%clk 0:00:03.3]} 45. c5 {[%clk 0:00:06.7]} 45... Kg3 {[%clk 0:00:03.1]} 46.
Re3+ {[%clk 0:00:06.8]} 46... Kh4 {[%clk 0:00:03.4]} 47. Re2 {[%clk 0:00:07]}
47... Rb4 {[%clk 0:00:02.8]} 48. Rc2 {[%clk 0:00:05.7]} 48... f4 {[%clk
0:00:03]} 49. c6 {[%clk 0:00:06.1]} 49... f3 {[%clk 0:00:03.6]} 50. c7 {[%clk
0:00:06.2]} 50... f2+ {[%clk 0:00:04]} 51. Kxf2 {[%clk 0:00:06]} 51... Rf4+
{[%clk 0:00:04.6]} 52. Ke1 {[%clk 0:00:05.8]} 52... Kg3 {[%clk 0:00:04.2]} 53.
Rc3+ {[%clk 0:00:05.6]} 53... Kh2 {[%clk 0:00:04.3]} 54. c8=Q {[%clk 0:00:05.7]}
54... h4 {[%clk 0:00:04.2]} 55. Qc7 {[%clk 0:00:06]} 55... Kh1 {[%clk
0:00:03.9]} 56. Qxf4 {[%clk 0:00:05.8]} 56... Kg1 {[%clk 0:00:04.4]} 57. Qg4+
{[%clk 0:00:04.7]} 57... Kh1 {[%clk 0:00:05]} 58. Qxh4 {[%clk 0:00:04.9]} 58...
Kh2 {[%clk 0:00:05.2]} 59. Qg3+ {[%clk 0:00:04.9]} 59... Kh1 {[%clk 0:00:05]}
60. Qg2# {[%clk 0:00:05.3]} 1-0